bitfinex/quotes_SOLUSD_20230112
["timestamp","ask_amount","ask_price","bid_price","bid_amount"]
[1673487294605,20.0,16.499,16.483,0.96]
[1673487294815,16.74,16.5,16.484,0.96]
[1673487295132,84.59496728,16.507,16.485,0.96]
[1673487295321,39.14496728,16.506,16.486,0.96]
[1673487295531,20.0,16.504,16.487,21.89]
[1673487295757,20.0,16.504,16.488,20.0]
[1673487296064,45.46,16.503,16.488,13.0]
[1673487296273,45.46,16.503,16.488,10.0]
[1673487296480,20.0,16.502,16.486,24.74]
[1673487296698,20.0,16.504,16.487,0.96]
[1673487297024,20.0,16.504,16.488,27.64]
[1673487297427,20.0,16.504,16.489,0.96]
[1673487298068,20.0,16.504,16.484,1.987]
[1673487298384,20.0,16.504,16.484,18.987]
[1673487298597,20.0,16.504,16.485,20.0]
[1673487298789,20.0,16.504,16.487,20.0]
[1673487298995,20.0,16.504,16.479,220.6799]
[1673487298996,16.47,16.5,16.479,220.6799]
[1673487299210,64.39,16.499,16.479,220.6799]
[1673487299427,20.0,16.498,16.48,20.0]
[1673487299638,62.48,16.497,16.48,52.93]
[1673487299848,63.44,16.497,16.48,52.93]
[1673487300060,63.44,16.497,16.48,20.0]
[1673487300278,62.48,16.497,16.48,52.7]
[1673487300678,17.0,16.497,16.48,52.7]
[1673487300885,1.92,16.496,16.48,52.7]
[1673487301101,45.48,16.497,16.48,20.0]
[1673487301322,45.47,16.499,16.482,20.0]
[1673487301753,45.46,16.503,16.483,26.023]
[1673487301955,45.46,16.505,16.484,20.0]
[1673487302158,45.46,16.503,16.485,8.173]
[1673487302487,45.46,16.503,16.486,21.92]
[1673487302911,20.0,16.502,16.486,20.0]
[1673487303098,20.0,16.5,16.486,20.0]
[1673487303643,45.47,16.499,16.484,20.0]
[1673487303853,18.92,16.498,16.479,220.6799]
[1673487304063,45.48,16.497,16.479,220.6799]
[1673487304253,17.96,16.496,16.479,220.6799]
[1673487304468,45.48,16.495,16.48,20.0]
[1673487304783,45.48,16.498,16.48,20.0]
[1673487304998,17.96,16.497,16.481,8.08]
[1673487305206,17.0,16.498,16.481,8.08]
[1673487305638,45.48,16.497,16.482,0.96]
[1673487305826,17.0,16.496,16.482,0.96]
[1673487306036,17.0,16.496,16.481,8.08]
[1673487306247,62.48,16.497,16.481,8.08]
[1673487306469,21.92,16.496,16.479,220.6799]
[1673487306686,20.0,16.494,16.48,21.92]
[1673487306877,62.49,16.493,16.48,21.92]
[1673487307088,62.49,16.493,16.48,41.92]
[1673487307307,17.0,16.493,16.48,40.0]
[1673487307527,17.0,16.494,16.48,40.0]
[1673487307742,45.49,16.493,16.48,20.0]
[1673487307934,17.0,16.492,16.48,20.0]
[1673487308139,45.5,16.491,16.48,20.0]
[1673487308352,45.49,16.493,16.48,20.0]
[1673487308563,17.0,16.492,16.48,20.0]
[1673487308789,20.0,16.493,16.48,20.0]
[1673487308996,64.41,16.492,16.48,20.0]
[1673487309210,20.0,16.491,16.475,111.825]
[1673487309425,109.31,16.49,16.476,23.74699287]
[1673487309821,109.31,16.49,16.476,0.30347]
[1673487310027,228.73496728,16.49,16.476,0.30347]
[1673487310467,20.0,16.489,16.476,0.30347]
[1673487310679,64.42,16.488,16.476,0.30347]
[1673487310892,83.56496728,16.488,16.476,0.30347]
[1673487311206,64.42,16.488,16.476,49.9301028]
[1673487311414,20.0,16.487,16.476,49.9301028]
[1673487311629,64.43,16.486,16.476,49.9301028]
[1673487312238,20.0,16.485,16.476,49.9301028]
[1673487312453,64.43,16.484,16.476,49.9301028]
[1673487313293,18.92,16.484,16.476,49.9301028]
[1673487313502,45.51,16.486,16.476,49.9301028]
[1673487314764,0.96,16.485,16.476,49.9301028]
[1673487314984,18.92,16.485,16.476,49.9301028]
[1673487315289,1.92,16.485,16.476,49.9301028]
[1673487315503,17.0,16.484,16.476,49.9301028]
[1673487315726,46.48,16.483,16.476,49.9301028]
[1673487316041,17.0,16.482,16.476,49.9301028]
[1673487316350,1.92,16.481,16.475,24.278885]
[1673487316569,65.53,16.48,16.475,8.5e-05]
[1673487316760,1.92,16.479,16.475,8.5e-05]
[1673487316969,45.53,16.478,16.475,8.5e-05]
[1673487317191,18.92,16.477,16.475,8.5e-05]
[1673487317387,65.54,16.476,16.475,8.5e-05]
[1673487317594,84.46,16.476,16.475,8.5e-05]
[1673487318441,101.68496728,16.476,16.475,8.5e-05]
[1673487318646,56.14496728,16.476,16.475,8.5e-05]
[1673487318881,37.0,16.476,16.475,8.5e-05]
[1673487319080,20.0,16.475,16.452,81.7549]
[1673487319291,125.27,16.47,16.452,81.7549]
[1673487319485,45.56,16.469,16.444,113.7951311]
[1673487319695,45.56,16.469,16.455,67.85451913]
[1673487319696,64.70496728,16.469,16.455,67.85451913]
[1673487319911,20.0,16.468,16.455,67.85451913]
[1673487320236,64.70496728,16.467,16.455,67.85451913]
[1673487320449,0.96,16.466,16.455,67.85451913]
[1673487320659,25.07,16.46,16.455,67.85451913]
[1673487320980,1.92,16.459,16.455,67.85451913]
[1673487321288,25.07,16.46,16.455,67.85451913]
[1673487321508,18.92,16.459,16.455,67.85451913]
[1673487322558,20.0,16.458,16.455,67.85451913]
[1673487322766,1.92,16.457,16.455,67.85451913]
[1673487322978,38.06496728,16.457,16.455,67.85451913]
[1673487323292,52.66590442,16.456,16.455,0.00451913]
[1673487323498,19.14496728,16.462,16.455,0.00451913]
[1673487323687,125.46,16.47,16.455,0.00451913]
[1673487323897,45.55,16.473,16.455,0.00451913]
[1673487324127,20.0,16.479,16.455,0.00451913]
[1673487324759,20.0,16.479,16.455,20.00451913]
[1673487324971,20.0,16.479,16.455,133.25901913]
[1673487325187,20.0,16.479,16.46,25.07]
[1673487325380,20.0,16.479,16.461,1.92]
[1673487325591,45.52,16.482,16.461,1.92]
[1673487325592,45.52,16.482,16.462,20.0]
[1673487325802,45.51,16.485,16.463,0.96]
[1673487326007,39.14496728,16.489,16.463,20.0]
[1673487326008,45.51,16.486,16.463,20.0]
[1673487326233,19.14496728,16.485,16.464,25.55]
[1673487326446,20.0,16.485,16.465,20.0]
[1673487326639,20.0,16.485,16.466,25.39]
[1673487326848,20.0,16.485,16.467,20.0]
[1673487327061,19.14496728,16.486,16.468,46.64]
[1673487327388,19.14496728,16.485,16.468,46.64]
[1673487328003,20.0,16.487,16.468,46.64]
[1673487328218,20.0,16.485,16.468,20.0]
[1673487328538,20.0,16.487,16.469,26.3]
[1673487328759,39.14496728,16.487,16.468,26.17]
[1673487328954,19.14496728,16.487,16.468,26.17]
[1673487329171,45.5,16.488,16.47,25.07]
[1673487329387,45.5,16.489,16.472,20.0]
[1673487329705,45.5,16.489,16.473,26.94]
[1673487329908,19.14496728,16.488,16.471,28.87]
[1673487330103,19.14496728,16.488,16.47,29.48]
[1673487330313,44.89,16.49,16.471,20.0]
[1673487330531,24.89,16.49,16.472,29.59]
[1673487331700,19.14496728,16.489,16.471,31.03]
[1673487331913,0.96,16.488,16.471,31.03]
[1673487332123,24.89,16.49,16.472,20.0]
[1673487332312,24.89,16.49,16.473,30.15]
[1673487333044,20.0,16.489,16.471,31.62]
[1673487333271,58.28993456,16.489,16.471,31.62]
[1673487333469,18.92,16.488,16.471,31.62]
[1673487333675,38.06496728,16.488,16.471,31.62]
[1673487333885,64.65496728,16.487,16.471,31.62]
[1673487334113,18.92,16.486,16.468,32.14]
[1673487334304,65.51,16.485,16.465,32.17]
[1673487334514,20.0,16.483,16.468,32.17]
[1673487334724,20.0,16.483,16.467,32.35]
[1673487334952,0.96,16.482,16.468,20.0]
[1673487335166,20.0,16.483,16.468,20.0]
[1673487335359,17.0,16.482,16.469,31.99]
[1673487336198,17.0,16.482,16.468,20.0]
[1673487336413,1.92,16.481,16.467,20.0]
[1673487336632,47.44,16.481,16.466,20.0]
[1673487336848,47.44,16.481,16.465,31.87]
[1673487336849,161.26496728,16.48,16.464,113.2545]
[1673487337038,20.0,16.478,16.464,113.2545]
[1673487337250,45.53,16.477,16.464,113.2545]
[1673487337458,17.96,16.476,16.464,113.2545]
[1673487338096,17.0,16.476,16.464,113.2545]
[1673487338414,45.53,16.479,16.464,113.2545]
[1673487338646,43.98496728,16.48,16.464,113.2545]
[1673487338844,45.53,16.479,16.464,113.2545]
[1673487339451,45.53,16.479,16.461,24.77]
[1673487339666,20.0,16.478,16.453,24.309178]
[1673487339875,24.84,16.47,16.453,24.309178]
[1673487340116,45.56,16.469,16.453,24.309178]
[1673487340304,1.92,16.468,16.453,24.309178]
[1673487340513,20.0,16.467,16.453,24.309178]
[1673487340723,17.0,16.466,16.453,24.309178]
[1673487340935,20.0,16.465,16.453,24.309178]
[1673487341563,20.0,16.468,16.453,24.309178]
[1673487341767,45.54,16.475,16.456,33.12]
[1673487341978,17.0,16.474,16.457,20.0]
[1673487342312,17.0,16.475,16.458,33.12]
[1673487342519,19.14496728,16.48,16.46,24.98]
[1673487342734,45.51,16.484,16.461,37.06]
[1673487343040,45.51,16.484,16.463,20.0]
[1673487343257,45.51,16.484,16.464,55.9]
[1673487343466,45.51,16.484,16.465,20.0]
[1673487343665,45.51,16.484,16.466,56.15]
[1673487343874,45.51,16.484,16.467,20.0]
[1673487344286,45.51,16.484,16.468,36.89]
[1673487344621,25.07,16.48,16.465,111.9304]
[1673487345250,20.0,16.479,16.465,111.9304]
[1673487345774,84.67496728,16.479,16.465,111.9304]
[1673487345995,39.14496728,16.479,16.465,111.9304]
[1673487346302,18.92,16.478,16.462,36.39]
[1673487346517,20.0,16.477,16.461,33.39]
[1673487346709,17.96,16.476,16.46,20.0]
[1673487346921,0.96,16.475,16.46,20.0]
[1673487347120,0.96,16.475,16.461,31.97]
[1673487347761,20.10496728,16.475,16.461,31.97]
[1673487347985,17.0,16.474,16.461,31.97]
[1673487348296,45.51,16.484,16.462,0.96]
[1673487348513,45.51,16.484,16.463,30.67]
[1673487348723,45.5,16.488,16.47,24.98]
[1673487348910,39.14496728,16.489,16.471,33.95]
[1673487349128,19.14496728,16.488,16.471,151.4289]
[1673487349336,38.28993456,16.488,16.471,151.4289]
[1673487349546,20.0,16.486,16.471,151.4289]
[1673487349764,20.0,16.486,16.471,117.4789]
[1673487350185,19.14496728,16.485,16.471,117.4789]
[1673487350393,45.51,16.484,16.471,117.4789]
[1673487350715,64.65496728,16.484,16.471,117.4789]
[1673487350923,17.0,16.483,16.471,117.4789]
[1673487351114,1.92,16.482,16.471,117.4789]
[1673487351329,1.92,16.482,16.466,35.76]
[1673487351550,25.07,16.48,16.465,27.84]
[1673487351867,25.07,16.48,16.462,27.84]
[1673487351868,20.0,16.478,16.462,27.84]
[1673487352076,17.96,16.477,16.461,279.2378]
[1673487352287,18.92,16.477,16.461,279.2378]
[1673487352499,64.45,16.477,16.461,279.2378]
[1673487352695,18.92,16.477,16.461,279.2378]
[1673487353129,18.92,16.477,16.461,259.2378]
[1673487353336,17.0,16.476,16.461,259.2378]
[1673487353676,1.92,16.475,16.461,259.2378]
[1673487353870,1.92,16.474,16.461,259.2378]
[1673487354276,1.92,16.474,16.462,20.0]
[1673487354709,17.0,16.476,16.462,20.0]
[1673487354917,17.0,16.476,16.463,18.42]
[1673487355746,17.0,16.476,16.464,20.0]
[1673487356167,17.0,16.476,16.465,20.73]
[1673487356478,17.0,16.476,16.464,20.0]
[1673487358703,17.0,16.476,16.461,233.0278]
[1673487358704,20.10496728,16.475,16.461,233.0278]
[1673487358915,17.96,16.474,16.461,233.0278]
[1673487359125,45.54,16.475,16.462,20.0]
[1673487359339,17.0,16.474,16.462,44.15]
[1673487359535,17.0,16.474,16.462,20.0]
[1673487359857,1.92,16.473,16.462,20.0]
[1673487360062,1.92,16.473,16.462,24.34]
[1673487360262,0.96,16.472,16.462,20.0]
[1673487360472,45.55,16.473,16.462,20.0]
[1673487360694,17.0,16.474,16.462,20.0]
[1673487360907,17.0,16.475,16.462,20.0]
[1673487361126,17.96,16.475,16.462,20.0]
[1673487361323,17.0,16.474,16.462,20.0]
[1673487361645,416.1,16.489,16.463,41.64]
[1673487361864,20.0,16.489,16.464,1.92]
[1673487362044,39.14496728,16.488,16.465,22.37]
[1673487362255,64.64496728,16.488,16.466,1.92]
[1673487362467,45.5,16.489,16.467,25.46]
[1673487362703,20.0,16.495,16.471,20.0]
[1673487362704,20.0,16.492,16.471,20.0]
[1673487362882,20.0,16.491,16.472,147.2766]
[1673487363225,45.5,16.49,16.472,147.2766]
[1673487363415,64.64496728,16.49,16.472,147.2766]
[1673487363745,19.14496728,16.489,16.473,20.0]
[1673487363944,65.48,16.495,16.474,27.36]
[1673487364154,45.48,16.496,16.475,21.92]
[1673487364485,19.14496728,16.498,16.477,1.66296768]
[1673487364691,20.0,16.495,16.478,29.59]
[1673487365095,19.14496728,16.495,16.478,20.0]
[1673487365306,45.49,16.494,16.479,1.63909759]
[1673487366480,18.92,16.493,16.479,1.63909759]
[1673487366690,17.96,16.493,16.478,20.0]
[1673487367005,0.96,16.492,16.478,20.0]
[1673487367210,0.96,16.491,16.478,20.0]
[1673487367413,64.62496728,16.496,16.479,37.1]
[1673487367619,45.47,16.502,16.481,20.0]
[1673487367829,20.0,16.509,16.483,2.36877243]
[1673487367830,45.46,16.505,16.483,2.36877243]
[1673487368043,20.0,16.509,16.482,176.1482]
[1673487368044,20.0,16.507,16.485,22.36877243]
[1673487368252,45.45,16.506,16.486,61.44]
[1673487368459,20.0,16.507,16.486,81.54496728]
[1673487368684,45.45,16.508,16.487,20.0]
[1673487368890,45.45,16.509,16.488,42.85]
[1673487369095,45.45,16.509,16.489,20.0]
[1673487369416,45.45,16.509,16.49,66.27]
[1673487369738,45.45,16.509,16.491,20.96]
[1673487369956,45.44,16.512,16.492,43.99]
[1673487370259,45.44,16.512,16.492,26.5131993]
[1673487370453,45.44,16.512,16.493,19.14496728]
[1673487370664,45.44,16.512,16.494,28.69]
[1673487370889,20.0,16.511,16.494,28.69]
[1673487371079,45.44,16.513,16.495,20.0]
[1673487371290,45.42,16.519,16.496,29.45]
[1673487371500,20.0,16.518,16.497,20.0]
[1673487371736,45.42,16.517,16.498,50.34]
[1673487372658,45.42,16.517,16.499,20.0]
[1673487372871,18.92,16.516,16.5,31.54]
[1673487373073,18.92,16.516,16.499,51.98]
[1673487373294,1.92,16.516,16.499,51.98]
[1673487374038,1.92,16.516,16.499,31.98]
[1673487374454,45.43,16.515,16.499,31.98]
[1673487374650,38.92,16.514,16.499,224.45176723]
[1673487375072,18.92,16.514,16.499,224.45176723]
[1673487375286,23.41,16.51,16.499,224.45176723]
[1673487375508,47.37,16.509,16.499,224.45176723]
[1673487375711,20.0,16.508,16.499,224.45176723]
[1673487375920,64.37,16.507,16.499,224.45176723]
[1673487376139,64.37,16.507,16.499,103.91596723]
[1673487376354,20.0,16.506,16.499,103.91596723]
[1673487376571,20.0,16.504,16.499,103.91596723]
[1673487376784,45.46,16.503,16.499,103.91596723]
[1673487377097,1.92,16.502,16.499,103.91596723]
[1673487377281,18.92,16.507,16.499,103.91596723]
[1673487377282,45.45,16.509,16.499,103.91596723]
[1673487377497,23.41,16.51,16.499,103.91596723]
[1673487378232,45.43,16.513,16.499,103.91596723]
[1673487378439,20.0,16.512,16.499,103.91596723]
[1673487378872,45.44,16.511,16.499,103.91596723]
[1673487379074,20.0,16.512,16.499,103.91596723]
[1673487379402,19.14496728,16.51,16.499,103.91596723]
[1673487379809,20.0,16.512,16.499,103.91596723]
[1673487380232,20.0,16.513,16.499,103.91596723]
[1673487380548,65.43,16.513,16.499,103.91596723]
[1673487381191,18.92,16.512,16.499,103.91596723]
[1673487381502,20.0,16.51,16.499,103.91596723]
[1673487381820,18.92,16.509,16.499,103.91596723]
[1673487382129,83.51496728,16.509,16.499,103.91596723]
[1673487382345,20.0,16.508,16.499,103.91596723]
[1673487382552,18.92,16.507,16.499,103.91596723]
[1673487383082,17.0,16.508,16.499,103.91596723]
[1673487383290,20.0,16.513,16.499,103.91596723]
[1673487383499,20.0,16.514,16.5,20.0]
[1673487383809,20.0,16.519,16.5,39.14496728]
[1673487384037,65.42,16.518,16.501,113.4417]
[1673487384215,20.0,16.518,16.501,113.4417]
[1673487384425,20.0,16.518,16.499,103.91596723]
[1673487384635,39.14496728,16.518,16.5,20.0]
[1673487384841,20.0,16.518,16.5,20.0]
[1673487385077,20.0,16.519,16.501,20.0]
[1673487385265,64.34,16.518,16.501,20.0]
[1673487385472,18.92,16.518,16.501,20.0]
[1673487385687,65.42,16.519,16.501,20.0]
[1673487385916,45.42,16.52,16.501,20.0]
[1673487386736,45.42,16.52,16.501,123.91596723]
[1673487386951,17.5,16.519,16.501,123.91596723]
[1673487387386,45.42,16.518,16.502,1.59884738]
[1673487387609,69.58657728,16.518,16.502,1.59884738]
[1673487387807,127.35495257,16.518,16.502,1.59884738]
[1673487388011,45.42,16.518,16.502,1.59884738]
[1673487388224,17.5,16.519,16.502,1.59884738]
[1673487388428,20.86,16.52,16.502,20.0]
[1673487388662,20.0,16.521,16.502,20.0]
[1673487388872,20.0,16.52,16.502,20.0]
[1673487389697,20.0,16.521,16.503,0.96]
[1673487390431,20.0,16.521,16.503,20.96]
[1673487390638,45.38,16.532,16.505,2.5]
[1673487390848,45.37,16.536,16.508,3.0744512]
[1673487391057,20.0,16.535,16.51,3.0744512]
[1673487391269,45.38,16.534,16.512,3.0744512]
[1673487391480,20.0,16.533,16.515,3.0744512]
[1673487391695,45.38,16.532,16.515,16.1244512]
[1673487391901,20.0,16.531,16.515,120.04041843]
[1673487392127,20.0,16.531,16.516,20.0]
[1673487392340,45.39,16.53,16.517,3.0744512]
[1673487392554,65.37,16.535,16.517,3.0744512]
[1673487393057,65.38,16.534,16.519,3.0744512]
[1673487393266,45.38,16.534,16.519,3.0744512]
[1673487393477,20.0,16.535,16.519,3.0744512]
[1673487393688,45.38,16.534,16.519,3.0744512]
[1673487394119,20.0,16.533,16.519,3.0744512]
[1673487394444,46.34,16.532,16.519,3.0744512]
[1673487394631,20.0,16.531,16.519,3.0744512]
[1673487394844,45.39,16.53,16.519,3.0744512]
[1673487395274,45.39,16.531,16.519,3.0744512]
[1673487395594,60.69,16.53,16.519,3.0744512]
[1673487395808,64.31,16.529,16.519,3.0744512]
[1673487396330,45.39,16.529,16.519,3.0744512]
[1673487396538,20.0,16.53,16.519,3.0744512]
[1673487396745,45.39,16.529,16.519,3.0744512]
[1673487396947,20.0,16.533,16.519,3.0744512]
[1673487397159,65.38,16.532,16.519,3.0744512]
[1673487397367,45.38,16.532,16.519,3.0744512]
[1673487397583,20.0,16.531,16.519,3.0744512]
[1673487397789,45.39,16.53,16.519,3.0744512]
[1673487398001,20.0,16.531,16.519,3.0744512]
[1673487398209,45.39,16.53,16.519,3.0744512]
[1673487398412,45.38,16.533,16.519,3.0744512]
[1673487398627,20.0,16.532,16.519,3.0744512]
[1673487398850,45.38,16.534,16.521,3.0744512]
[1673487399061,20.0,16.535,16.521,3.0744512]
[1673487399283,45.38,16.534,16.521,3.0744512]
[1673487399470,45.38,16.534,16.52,20.0]
[1673487399471,45.38,16.534,16.52,3.0744512]
[1673487399797,20.0,16.533,16.519,3.0744512]
[1673487400022,45.38,16.532,16.519,3.0744512]
[1673487400205,20.0,16.531,16.519,3.0744512]
[1673487400728,45.39,16.53,16.519,3.0744512]
[1673487400943,20.0,16.532,16.519,3.0744512]
[1673487401157,45.39,16.531,16.519,3.0744512]
[1673487401377,45.38,16.532,16.519,3.0744512]
[1673487401572,20.0,16.531,16.519,3.0744512]
[1673487401780,65.39,16.53,16.519,3.0744512]
[1673487402216,18.92,16.529,16.519,3.0744512]
[1673487402434,45.39,16.528,16.519,3.0744512]
[1673487402633,18.92,16.527,16.519,3.0744512]
[1673487403254,1.92,16.527,16.519,3.0744512]
[1673487403478,17.0,16.526,16.518,103.91596723]
[1673487403681,1.92,16.527,16.519,1.63098031]
[1673487404840,45.39,16.53,16.518,103.91596723]
[1673487405253,45.39,16.53,16.519,21.55922124]
[1673487405475,20.0,16.531,16.519,20.0]
[1673487405796,65.38,16.532,16.519,20.0]
[1673487406324,18.92,16.531,16.518,103.91596723]
[1673487406510,20.0,16.53,16.518,103.91596723]
[1673487407046,20.0,16.53,16.519,20.0]
[1673487407258,20.0,16.53,16.518,103.91596723]
[1673487407687,88.67,16.53,16.518,103.91596723]
[1673487408004,68.67,16.53,16.518,103.91596723]
[1673487408837,23.28,16.53,16.518,103.91596723]
[1673487409041,23.28,16.53,16.519,20.0]
[1673487409250,20.0,16.531,16.519,20.0]
[1673487409470,20.0,16.533,16.519,20.0]
[1673487409657,45.38,16.532,16.519,20.0]
[1673487409871,20.0,16.531,16.519,20.0]
[1673487410519,45.37,16.536,16.52,1.55574821]
[1673487410710,45.37,16.538,16.522,2.08091047]
[1673487411149,45.37,16.538,16.522,22.08091047]
[1673487411343,45.36,16.539,16.522,22.08091047]
[1673487411782,45.36,16.539,16.523,45.41]
[1673487411979,45.36,16.539,16.524,22.08091047]
[1673487412190,45.36,16.539,16.524,141.04341047]
[1673487412406,17.96,16.538,16.524,141.04341047]
[1673487412622,46.33,16.537,16.524,141.04341047]
[1673487412837,17.96,16.536,16.524,141.04341047]
[1673487413048,0.96,16.535,16.524,141.04341047]
[1673487413377,0.96,16.534,16.524,141.04341047]
[1673487413894,0.96,16.533,16.524,141.04341047]
[1673487414082,45.36,16.539,16.524,181.7519444]
[1673487414738,20.0,16.538,16.524,161.7519444]
[1673487414927,45.37,16.537,16.524,161.7519444]
[1673487415471,45.37,16.537,16.524,40.70853393]
[1673487415472,9.66,16.525,16.524,40.70853393]
[1673487415873,28.58,16.525,16.524,40.70853393]
[1673487416284,28.58,16.525,16.524,33.13793393]
[1673487416503,73.98,16.525,16.518,63.2074333]
[1673487416710,72.06,16.525,16.518,63.2074333]
[1673487416920,26.66,16.525,16.518,63.2074333]
[1673487417994,18.92,16.524,16.518,63.2074333]
[1673487419246,72.88040006,16.525,16.518,63.2074333]
[1673487419247,9.66,16.525,16.518,63.2074333]
[1673487419879,9.66,16.525,16.519,45.42]
[1673487420093,0.0001,16.525,16.519,20.0]
[1673487420619,45.36,16.539,16.521,1.55112144]
[1673487420812,45.36,16.539,16.523,1.65501268]
[1673487421022,20.0,16.538,16.521,45.41]
[1673487421232,45.37,16.537,16.521,45.41]
[1673487421457,45.37,16.537,16.52,20.0]
[1673487421668,17.0,16.536,16.52,20.0]
[1673487421885,66.33,16.535,16.52,20.0]
[1673487422094,17.0,16.534,16.52,20.0]
[1673487422302,47.3,16.533,16.52,20.0]
[1673487422611,37.0,16.532,16.519,20.0]
[1673487422812,24.98,16.53,16.519,20.0]
[1673487423018,24.98,16.53,16.518,83.2074333]
[1673487423456,24.98,16.53,16.519,20.0]
[1673487423771,63.19040006,16.537,16.519,20.0]
[1673487423987,63.19040006,16.537,16.521,20.0]
[1673487424381,56.74040006,16.536,16.521,20.0]
[1673487424602,20.0,16.534,16.521,20.0]
[1673487424807,17.82040006,16.535,16.522,0.96]
[1673487425018,45.36,16.539,16.522,0.96]
[1673487425437,45.36,16.539,16.521,65.41]
[1673487425862,45.36,16.539,16.521,20.0]
[1673487426408,54.56080012,16.538,16.521,20.0]
[1673487426618,45.37,16.537,16.521,20.0]
[1673487426926,1.92,16.536,16.521,20.0]
[1673487427136,45.37,16.537,16.521,20.0]
[1673487427348,45.36,16.539,16.521,20.0]
[1673487427972,20.0,16.538,16.521,20.0]
[1673487428183,45.37,16.537,16.521,20.0]
[1673487428395,18.92,16.536,16.521,20.0]
[1673487428607,45.37,16.535,16.52,65.42]
[1673487428814,18.92,16.534,16.52,65.42]
[1673487429441,17.0,16.533,16.52,65.42]
[1673487429655,1.92,16.532,16.52,65.42]
[1673487429980,0.96,16.531,16.52,65.42]
[1673487430295,1.92,16.534,16.52,65.42]
[1673487430698,0.96,16.534,16.521,1.92]
[1673487431125,0.96,16.534,16.522,45.41]
[1673487431340,1.92,16.534,16.522,45.41]
[1673487431544,1.92,16.534,16.521,45.41]
[1673487431748,0.96,16.533,16.521,45.41]
[1673487431964,0.96,16.533,16.52,65.42]
[1673487432285,0.96,16.534,16.52,65.42]
[1673487432696,25.13,16.54,16.52,65.42]
[1673487433034,25.13,16.54,16.521,0.96]
[1673487433213,45.36,16.539,16.522,46.37]
[1673487433422,45.36,16.539,16.523,0.96]
[1673487433633,25.13,16.54,16.523,0.96]
[1673487433634,25.13,16.54,16.524,45.4]
[1673487433868,25.13,16.54,16.526,20.0]
[1673487434074,25.13,16.54,16.526,65.4]
[1673487434392,25.13,16.54,16.527,1.92]
[1673487434807,0.96,16.539,16.527,1.92]
[1673487435028,17.0,16.539,16.527,1.92]
[1673487436591,25.13,16.54,16.527,1.92]
[1673487436797,56.50240325,16.55,16.53,24.9]
[1673487437004,25.15,16.55,16.531,66.35]
[1673487437330,25.15,16.55,16.532,0.96]
[1673487437644,25.15,16.55,16.533,46.34]
[1673487437843,63.13040006,16.557,16.535,20.0]
[1673487438054,63.13040006,16.557,16.536,67.29]